fUSD/lending_fUSD_20260322
["ID","MTS","AMOUNT","RATE_DAILY","PERIOD"]
[408772111,1774215043355,-282.71673119,0.00013581,2]
[408772113,1774215043364,-1680.0,0.00013604,2]
[408772115,1774215043374,-328.27564859,0.00013612,2]
[408772116,1774215043384,-500.0,0.00013612,2]
[408772117,1774215043393,-192.4229468,0.00013612,2]
[408772118,1774215043403,-164.410088,0.00013612,2]
[408772119,1774215043413,-500.0,0.00013612,2]
[408772120,1774215043422,-500.0,0.00013612,2]
[408772121,1774215043432,-500.0,0.00013612,2]
[408772122,1774215043441,-500.0,0.00013612,2]
[408772123,1774215043451,-500.0,0.00013612,2]
[408772124,1774215043460,-500.0,0.00013612,2]
[408772125,1774215043470,-500.0,0.00013612,2]
[408772126,1774215043479,-500.0,0.00013612,2]
[408772127,1774215043489,-500.0,0.00013612,2]
[408772128,1774215043499,-196.2572746,0.00013612,2]
[408772129,1774215043508,-500.0,0.00013612,2]
[408772130,1774215043518,-500.0,0.00013612,2]
[408772131,1774215043528,-198.05368848,0.00013612,2]
[408772132,1774215043546,-86.03725959,0.00013612,2]
[408772133,1774215043555,-500.0,0.00013612,2]
[408772134,1774215043565,-430.45627765,0.00013613,2]
[408772135,1774215043578,-2122.85360847,0.00013613,2]
[408772147,1774215045638,-5428.44835628,0.00013613,2]
[408772161,1774215045738,-198825.74996277,0.00013613,2]
[408772165,1774215045759,-8995.41348923,0.00013613,2]
[408772167,1774215045774,-6684.33019467,0.00013613,2]
[408772170,1774215045786,-883.4800005,0.00013613,2]
[408772177,1774215045992,-435.82438758,0.00013613,2]
[408772178,1774215046004,-1639.29829276,0.00013613,2]
[408772179,1774215046018,-2866.44569992,0.00013613,2]
[408772187,1774216231934,-166.66,0.00011098,2]
[408772188,1774216231944,-166.66,0.00011332,2]
[408772189,1774216231953,-500.0,0.00011407,2]
[408772190,1774216231962,-178.12,0.00011434,2]
[408772191,1774216231972,-137.32047939,0.00011565,2]
[408772192,1774216231983,-29.33952061,0.00011565,2]
[408772193,1774216231993,-150.0,0.00011719,2]
[408772194,1774216232003,-166.66,0.00011799,2]
[408772195,1774216232012,-187.68642998,0.00011861,2]
[408772196,1774216232022,-749.96065,0.00011961,2]
[408772197,1774216232032,-38.72892273,0.00012,2]
[408772198,1774216232056,-111.27107727,0.00012,2]
[408772199,1774216232065,-166.66,0.00012033,2]
[408772200,1774216232075,-1500.0,0.00012108,2]
[408772201,1774216232084,-1600.0,0.00012121,2]
[408772202,1774216232094,-166.66,0.00012266,2]
[408772203,1774216232103,-1200.0,0.00012399,2]
[408772221,1774216232112,-415.28909213,0.000124,2]
[408772222,1774216232529,-951.48132619,0.000124,2]
[408772223,1774216232540,-300.0,0.00012412,2]
[408772224,1774216232550,-2500.0,0.00012414,2]
[408772225,1774216232559,-8769.98623304,0.00012422,2]
[408772226,1774216232569,-6466.98649097,0.00012422,2]
[408772227,1774216232579,-1172.7449069,0.00012422,2]
[408772228,1774216232588,-150.0,0.00012506,2]
[408772229,1774216232598,-500.0,0.00012507,2]
[408772230,1774216232608,-500.0,0.00012507,2]
[408772231,1774216232618,-500.0,0.00012507,2]
[408772232,1774216232627,-500.0,0.00012507,2]
[408772233,1774216232636,-500.0,0.00012507,2]
[408772234,1774216232646,-151.0,0.00012507,2]
[408772235,1774216232656,-500.0,0.00012507,2]
[408772236,1774216232666,-151.0,0.00012507,2]
[408772237,1774216232675,-500.0,0.00012507,2]
[408772238,1774216232685,-151.0,0.00012507,2]
[408772239,1774216232695,-500.0,0.00012507,2]
[408772240,1774216232704,-151.0,0.00012507,2]
[408772241,1774216232714,-500.0,0.00012507,2]
[408772242,1774216232723,-151.0,0.00012507,2]
[408772243,1774216232733,-500.0,0.00012507,2]
[408772244,1774216232742,-151.0,0.00012507,2]
[408772245,1774216232752,-500.0,0.00012507,2]
[408772246,1774216232761,-151.0,0.00012507,2]
[408772247,1774216232770,-500.0,0.00012507,2]
[408772248,1774216232779,-151.0,0.00012507,2]
[408772249,1774216232789,-500.0,0.00012507,2]
[408772250,1774216232798,-151.0,0.00012507,2]
[408772251,1774216232807,-151.0,0.00012507,2]
[408772252,1774216232816,-151.0,0.00012507,2]
[408772253,1774216232826,-151.0,0.00012507,2]
[408772254,1774216232835,-184.957,0.00012512,2]
[408772255,1774216232844,-3242.142,0.00012512,2]
[408772256,1774216232854,-500.0,0.00012513,2]
[408772257,1774216232863,-229.79295402,0.00012513,2]
[408772258,1774216232873,-500.0,0.00012513,2]
[408772259,1774216232882,-500.0,0.00012513,2]
[408772260,1774216232891,-500.0,0.00012513,2]
[408772261,1774216232901,-500.0,0.00012513,2]
[408772262,1774216232910,-500.0,0.00012513,2]
[408772263,1774216232919,-553.29392855,0.00012513,2]
[408772264,1774216232929,-500.0,0.00012513,2]
[408772265,1774216232938,-500.0,0.00012513,2]
[408772266,1774216232947,-443.88797871,0.00012513,2]
[408772267,1774216232956,-500.0,0.00012513,2]
[408772268,1774216232965,-500.0,0.00012513,2]
[408772269,1774216232975,-500.0,0.00012513,2]
[408772270,1774216232985,-500.0,0.00012513,2]
[408772271,1774216232994,-500.0,0.00012513,2]
[408772272,1774216233004,-500.0,0.00012513,2]
[408772273,1774216233013,-500.0,0.00012513,2]
[408772274,1774216233023,-500.0,0.00012513,2]
[408772275,1774216233032,-500.0,0.00012513,2]
[408772276,1774216233041,-500.0,0.00012513,2]
[408772277,1774216233051,-500.0,0.00012513,2]
[408772278,1774216233060,-500.0,0.00012513,2]
[408772279,1774216233069,-500.0,0.00012513,2]
[408772280,1774216233078,-500.0,0.00012513,2]
[408772281,1774216233088,-500.0,0.00012513,2]
[408772282,1774216233097,-500.0,0.00012513,2]
[408772283,1774216233107,-500.0,0.00012513,2]
[408772284,1774216233117,-500.0,0.00012513,2]
[408772285,1774216233127,-500.0,0.00012513,2]
[408772286,1774216233137,-500.0,0.00012513,2]
[408772287,1774216233147,-500.0,0.00012513,2]
[408772288,1774216233157,-500.0,0.00012513,2]
[408772289,1774216233167,-500.0,0.00012513,2]
[408772290,1774216233177,-500.0,0.00012513,2]
[408772291,1774216233186,-500.0,0.00012513,2]
[408772292,1774216233199,-500.0,0.00012513,2]
[408772293,1774216233210,-500.0,0.00012513,2]
[408772294,1774216233221,-500.0,0.00012513,2]
[408772295,1774216233230,-500.0,0.00012513,2]
[408772296,1774216233241,-500.0,0.00012513,2]
[408772297,1774216233251,-500.0,0.00012513,2]
[408772298,1774216233261,-500.0,0.00012513,2]
[408772299,1774216233271,-500.0,0.00012513,2]
[408772300,1774216233281,-500.0,0.00012513,2]
[408772301,1774216233291,-500.0,0.00012513,2]
[408772302,1774216233301,-500.0,0.00012513,2]
[408772303,1774216233310,-500.0,0.00012513,2]
[408772304,1774216233319,-635.1657763,0.00012513,2]
[408772305,1774216233329,-500.0,0.00012513,2]
[408772306,1774216233339,-500.0,0.00012513,2]
[408772307,1774216233348,-500.0,0.00012513,2]
[408772308,1774216233357,-500.0,0.00012513,2]
[408772309,1774216233366,-500.0,0.00012513,2]
[408772310,1774216233376,-500.0,0.00012513,2]
[408772311,1774216233385,-150.0,0.00012513,2]
[408772312,1774216233395,-300.0,0.00012513,2]
[408772313,1774216233404,-500.0,0.00012513,2]
[408772314,1774216233413,-500.0,0.00012513,2]
[408772315,1774216233423,-500.0,0.00012513,2]
[408772316,1774216233433,-500.0,0.00012513,2]
[408772317,1774216233442,-313.51657763,0.00012513,2]
[408772318,1774216233452,-500.0,0.00012513,2]
[408772319,1774216233462,-500.0,0.00012513,2]
[408772320,1774216233473,-500.0,0.00012513,2]
[408772321,1774216233484,-500.0,0.00012513,2]
[408772322,1774216233493,-500.0,0.00012513,2]
[408772323,1774216233503,-150.0,0.00012513,2]
[408772324,1774216233512,-150.0,0.00012513,2]
[408772325,1774216233522,-150.0,0.00012513,2]
[408772326,1774216233537,-172.59428131,0.00012513,2]
[408772327,1774216233546,-150.0,0.00012513,2]
[408772328,1774216233556,-150.0,0.00012513,2]
[408772329,1774216233565,-150.0,0.00012513,2]
[408772330,1774216233575,-150.0,0.00012513,2]
[408772331,1774216233586,-150.0,0.00012513,2]
[408772332,1774216233595,-150.0,0.00012513,2]
[408772333,1774216233605,-16187.739,0.00012522,2]
[408772334,1774216233616,-500.0,0.00012547,2]
[408772335,1774216233626,-500.0,0.00012573,2]
[408772336,1774216233636,-500.56411595,0.00012573,2]
[408772337,1774216233645,-500.0,0.00012573,2]
[408772338,1774216233655,-500.0,0.00012573,2]
[408772339,1774216233664,-500.0,0.00012573,2]
[408772340,1774216233673,-500.0,0.00012573,2]
[408772341,1774216233683,-500.0,0.00012573,2]
[408772342,1774216233693,-150.0,0.00012597,2]
[408772343,1774216233702,-500.0,0.00012603,2]
[408772344,1774216233711,-402.69,0.00012781,2]
[408772345,1774216233720,-400.0,0.000128,4]
[408772346,1774216233730,-8769.98623299,0.00012808,2]
[408772347,1774216233738,-1172.7449069,0.00012808,2]
[408772348,1774216233747,-430.0,0.00012889,2]
[408772349,1774216233756,-430.0,0.00012889,2]
[408772350,1774216233765,-500.0,0.00012889,2]
[408772351,1774216233774,-430.0,0.00012889,2]
[408772352,1774216233784,-430.0,0.00012889,2]
[408772353,1774216233793,-500.0,0.00012889,2]
[408772354,1774216233802,-430.0,0.00012889,2]
[408772355,1774216233811,-500.0,0.00012889,2]
[408772356,1774216233821,-430.0,0.00012889,2]
[408772357,1774216233830,-500.0,0.00012889,2]
[408772358,1774216233839,-430.0,0.00012889,2]
[408772359,1774216233848,-500.0,0.00012889,2]
[408772360,1774216233858,-430.0,0.00012889,2]
[408772361,1774216233868,-500.0,0.00012889,2]
[408772362,1774216233878,-430.0,0.00012889,2]
[408772363,1774216233888,-556.71503579,0.00012889,2]
[408772364,1774216233897,-430.0,0.00012889,2]
[408772365,1774216233906,-430.0,0.00012889,2]
[408772366,1774216233917,-430.0,0.00012889,2]
[408772367,1774216233926,-430.0,0.00012889,2]
[408772368,1774216233935,-430.0,0.00012889,2]
[408772369,1774216233945,-430.0,0.00012889,2]
[408772370,1774216233955,-430.0,0.00012889,2]
[408772371,1774216233966,-430.0,0.00012889,2]
[408772372,1774216233977,-430.0,0.00012889,2]
[408772373,1774216233988,-430.0,0.00012889,2]
[408772374,1774216233998,-430.0,0.00012889,2]
[408772375,1774216234008,-430.0,0.00012889,2]
[408772376,1774216234018,-430.0,0.00012889,2]
[408772377,1774216234028,-430.0,0.00012889,2]
[408772378,1774216234038,-437.98644877,0.00012889,2]
[408772379,1774216234047,-800.0,0.000129,4]
[408772380,1774216234056,-250.0,0.00013,2]
[408772381,1774216234065,-979.16666667,0.00013155,2]
[408772382,1774216234074,-160.0,0.00013155,2]
[408772383,1774216234083,-500.0,0.00013178,2]
[408772384,1774216234092,-8769.98623299,0.00013195,2]
[408772385,1774216234102,-1172.7449069,0.00013195,2]
[408772386,1774216234113,-166.66,0.00013216,2]
[408772387,1774216234124,-500.0,0.00013233,2]
[408772388,1774216234134,-156.6963,0.000133,2]
[408772389,1774216234143,-3240.0,0.00013425,2]
[408772390,1774216234152,-1000.0,0.00013513,2]
[408772391,1774216234162,-578.20924308,0.00013547,2]
[408772392,1774216234171,-151.0,0.00013547,2]
[408772393,1774216234181,-500.0,0.00013547,2]
[408772394,1774216234191,-500.0,0.00013547,2]
[408772395,1774216234202,-383.23755688,0.00013547,2]
[408772396,1774216234216,-500.0,0.00013547,2]
[408772397,1774216234225,-500.0,0.00013547,2]
[408772398,1774216234234,-500.0,0.00013547,2]
[408772399,1774216234243,-500.0,0.00013547,2]
[408772400,1774216234254,-500.0,0.00013547,2]
[408772401,1774216234263,-500.0,0.00013547,2]
[408772402,1774216234273,-500.0,0.00013547,2]
[408772403,1774216234284,-500.0,0.00013547,2]
[408772404,1774216234294,-500.0,0.00013547,2]
[408772405,1774216234303,-500.0,0.00013547,2]
[408772406,1774216234312,-500.0,0.00013547,2]
[408772407,1774216234322,-500.0,0.00013547,2]
[408772408,1774216234331,-500.0,0.00013547,2]
[408772409,1774216234340,-500.0,0.00013547,2]
[408772410,1774216234349,-500.0,0.00013547,2]
[408772411,1774216234358,-148.8698298,0.00013547,2]
[408772412,1774216234372,-351.1301702,0.00013547,2]
[408772413,1774216234381,-414.35159156,0.00013547,2]
[408772414,1774216234392,-85.64840844,0.00013547,2]
[408772415,1774216234401,-500.0,0.00013547,2]
[408772416,1774216234411,-52.69212882,0.00013547,2]
[408772417,1774216234431,-447.30787118,0.00013547,2]
[408772418,1774216234440,-500.0,0.00013547,2]
[408772419,1774216234449,-500.0,0.00013547,2]
[408772420,1774216234458,-151.0,0.00013547,2]
[408772421,1774216234467,-406.53842323,0.00013547,2]
[408772422,1774216234518,-93.46157677,0.00013547,2]
[408772423,1774216234527,-500.0,0.00013547,2]
[408772424,1774216234537,-500.0,0.00013547,2]
[408772425,1774216234547,-174.61919141,0.00013547,2]
[408772426,1774216234556,-250.0,0.00013547,2]
[408772427,1774216234565,-250.0,0.00013547,2]
[408772428,1774216234575,-250.0,0.00013547,2]
[408772429,1774216234584,-250.0,0.00013547,2]
[408772430,1774216234594,-250.0,0.00013547,2]
[408772431,1774216234603,-250.0,0.00013547,2]
[408772432,1774216234613,-250.0,0.00013547,2]
[408772433,1774216234622,-250.0,0.00013547,2]
[408772434,1774216234631,-200.0,0.00013547,2]
[408772435,1774216234641,-262.90206542,0.00013547,2]
[408772436,1774216234650,-500.0,0.00013547,2]
[408772437,1774216234659,-500.0,0.00013547,2]
[408772438,1774216234668,-500.0,0.00013547,2]
[408772439,1774216234677,-500.0,0.00013547,2]
[408772440,1774216234688,-500.0,0.00013547,2]
[408772441,1774216234698,-500.0,0.00013573,2]
[408772442,1774216234707,-4911.65616254,0.00013581,2]
[408772443,1774216234720,-2873.14455506,0.00013581,2]
[408772444,1774216234731,-985.18551539,0.00013581,2]
[408772445,1774216234740,-1127.92452265,0.00013581,2]
[408772446,1774216234751,-44.82038425,0.00013581,2]
[408772447,1774216234760,-255.0,0.00013594,2]
[408772448,1774216234769,-500.0,0.00013602,2]
[408772449,1774216234778,-151.0,0.00013602,2]
[408772450,1774216234787,-272.62944185,0.00013602,2]
[408772451,1774216234796,-1576.1449817,0.00013604,2]
[408772452,1774216234805,-1147.76874577,0.00013604,2]
[408772453,1774216234827,-1205.79627524,0.00013604,2]
[408772454,1774216234838,-1221.87054519,0.00013604,2]
[408772455,1774216234849,-115.83931689,0.00013604,2]
[408772456,1774216234867,-1249.39039257,0.00013604,2]
[408772457,1774216234878,-500.0,0.00013604,2]
[408772458,1774216234890,-797.59445327,0.00013604,2]
[408772459,1774216234901,-765.71157577,0.00013604,2]
[408772502,1774216239802,-1343.73963109,0.00013604,2]
[408772503,1774216239819,-499.52261941,0.00013604,2]
[408772504,1774216239833,-214.153158,0.0001361,2]
[408772505,1774216239847,-987.75961641,0.00013612,3]
[408772506,1774216239860,-155.0,0.00013613,3]
[408772507,1774216239872,-158.0,0.00013613,3]
[408772508,1774216239885,-225.0,0.00013613,3]
[408772509,1774216239897,-10.21742318,0.0001362,2]
[408772510,1774216239914,-345.6245525,0.0001362,2]
[408772511,1774216239937,-64.15802432,0.0001362,2]
[408772512,1774216239949,-1562.71718193,0.00013636,2]
[408772513,1774216239965,-37.28281807,0.00013636,2]
[408772514,1774216239977,-1680.0,0.00013639,2]
[408772515,1774216239990,-166.66,0.00013652,2]
[408772516,1774216240003,-500.0,0.00013657,2]
[408772517,1774216240016,-151.0,0.00013657,2]
[408772518,1774216240029,-282.71673119,0.00013657,2]
[408772519,1774216240042,-316.86824653,0.00013698,2]
[408772520,1774216240055,-152.02,0.00013699,2]
[408772521,1774216240068,-211.86537116,0.00013699,2]
[408772522,1774216240080,-501.83982769,0.00013699,2]
[408772523,1774216240094,-185.58017527,0.00013699,2]
[408772524,1774216240106,-504.53937836,0.00013699,2]
[408772525,1774216240118,-500.0,0.00013699,2]
[408772526,1774216240130,-500.0,0.00013699,2]
[408772527,1774216240143,-635.45226493,0.00013699,2]
[408772528,1774216240156,-1667.41,0.000137,2]
[408772529,1774216240167,-1128.69,0.000137,2]
[408772530,1774216240180,-2064.63,0.000137,2]
[408772531,1774216240192,-1309.76258914,0.000137,2]
[408772532,1774216240208,-706.73680909,0.000137,2]
[408772533,1774216240224,-48.13060177,0.000137,2]
[408772534,1774216240236,-1640.30832327,0.000137,2]
[408772535,1774216240251,-424.32167673,0.000137,2]
[408772536,1774216240263,-2064.63,0.000137,2]
[408772537,1774216240276,-2064.63,0.000137,2]
[408772538,1774216240289,-500.0,0.00013712,2]
[408772539,1774216240301,-151.0,0.00013712,2]
[408772540,1774216240312,-293.17725025,0.00013712,2]
[408772541,1774216240324,-500.0,0.00013767,2]
[408772542,1774216240337,-151.0,0.00013767,2]
[408772543,1774216240348,-304.02480851,0.00013767,2]
[408772544,1774216240360,-1385.7,0.000138,2]
[408772545,1774216240374,-500.0,0.00013822,2]
[408772546,1774216240387,-151.0,0.00013822,2]
[408772547,1774216240401,-315.27372642,0.00013822,2]
[408772548,1774216240413,-500.0,0.00013877,2]
[408772549,1774216240425,-151.0,0.00013877,2]
[408772550,1774216240438,-326.9388543,0.00013877,2]
[408772551,1774216240450,-1200.0,0.000139,5]
[408772552,1774216240462,-164.665332,0.00013911,7]
[408772553,1774216240474,-500.0,0.00013932,2]
[408772554,1774216240487,-151.0,0.00013932,2]
[408772555,1774216240499,-339.03559191,0.00013932,2]
[408772556,1774216240512,-374.36237629,0.00013968,2]
[408772557,1774216240532,-422.58467,0.00013968,2]
[408772558,1774216240548,-2589.49791791,0.00013968,2]
[408772559,1774216240563,-5383.54126879,0.00013968,2]
[408772560,1774216240575,-1172.7449069,0.00013968,2]
[408772561,1774216240587,-258.65836085,0.00013978,2]
[408772564,1774216241531,-1061.23163915,0.00013978,2]
[408772565,1774216241566,-500.0,0.00013987,2]
[408772566,1774216241597,-151.0,0.00013987,2]
[408772567,1774216241618,-501.0,0.00014,2]
[408772568,1774216241627,-200.0,0.00014041,2]
[408772569,1774216241636,-500.0,0.00014042,2]
[408772570,1774216241645,-151.0,0.00014042,2]
[408772571,1774216241654,-6466.9864909,0.00014047,2]
[408772572,1774216241663,-2000.0,0.00014065,2]
[408772573,1774216241672,-265.191125,0.00014067,7]
[408772574,1774216241682,-166.66,0.00014089,2]
[408772575,1774216241691,-151.0,0.00014095,2]
[408772576,1774216241700,-181.08010149,0.00014095,2]
[408772577,1774216241710,-200.0,0.00014095,2]
[408772578,1774216241719,-500.0,0.00014097,2]
[408772579,1774216241729,-151.0,0.00014097,2]
[408772580,1774216241738,-160.0,0.00014112,7]
[408772581,1774216241748,-500.0,0.00014152,2]
[408772582,1774216241757,-151.0,0.00014152,2]
[408772583,1774216241766,-151.0,0.00014155,2]
[408772584,1774216241776,-2101.0,0.00014173,5]
[408772585,1774216241785,-222.67383,0.00014195,2]
[408772586,1774216241794,-222.67383,0.00014195,2]
[408772587,1774216241804,-222.67383,0.00014195,2]
[408772588,1774216241814,-222.67383,0.00014195,2]
[408772589,1774216241823,-3984.0,0.00014195,5]
[408772590,1774216241832,-3715.0,0.00014195,5]
[408772591,1774216241841,-677.3269594,0.00014247,2]
[408772592,1774216241851,-1000.0,0.00014247,2]
[408772593,1774216241860,-164.762857,0.00014284,7]
[408772594,1774216241870,-151.0,0.00014351,2]
[408772595,1774216241879,-8769.98623299,0.00014354,2]
[408772596,1774216241888,-1172.7449069,0.00014354,2]
[408772597,1774216241897,-152.02,0.00014384,2]
[408772598,1774216241906,-998.0,0.000144,2]
[408772599,1774216241916,-312.0,0.000144,2]
[408772600,1774216241926,-212.024242,0.00014444,7]
[408772601,1774216241936,-166.66,0.00014525,2]
[408772602,1774216241946,-2748.66,0.00014576,2]
[408772603,1774216241956,-225.0,0.00014581,3]
[408772604,1774216241966,-160.0,0.00014603,7]
[408772605,1774216241975,-151.0,0.00014643,2]
[408772606,1774216241985,-187.78006525,0.00014643,2]
[408772607,1774216241994,-200.0,0.00014643,2]
[408772608,1774216242004,-250.0,0.00014664,2]
[408772609,1774216242018,-8769.98623299,0.00014741,2]
[408772610,1774216242027,-1172.7449069,0.00014741,2]
[408772611,1774216242037,-501.0,0.00014767,2]
[408772612,1774216242047,-433.0,0.00014782,2]
[408772613,1774216242057,-1222.68518983,0.00014795,2]
[408772614,1774216242066,-587.0,0.00014945,2]
[408772615,1774216242076,-166.66,0.00014961,2]
[408772616,1774216242084,-500.0,0.00015,2]
[408772617,1774216242093,-300.0,0.00015,2]
[408772618,1774216242103,-500.0,0.00015,2]
[408772619,1774216242114,-500.0,0.00015,2]
[408772620,1774216242123,-500.0,0.00015,2]
[408772621,1774216242133,-500.0,0.00015,2]
[408772622,1774216242143,-500.0,0.00015,2]
[408772623,1774216242153,-500.0,0.00015,2]
[408772624,1774216242163,-500.0,0.00015,2]
[408772625,1774216242172,-500.0,0.00015,2]
[408772626,1774216242182,-500.0,0.00015,2]
[408772627,1774216242191,-500.0,0.00015,2]
[408772628,1774216242201,-500.0,0.00015,2]
[408772629,1774216242215,-500.0,0.00015,2]
[408772630,1774216242224,-2351.0,0.00015003,2]
[408772631,1774216242233,-160.633446,0.00015068,2]
[408772632,1774216242243,-168.75,0.00015068,2]
[408772633,1774216242255,-152.02,0.00015068,2]
[408772634,1774216242265,-1667.41,0.000151,2]
[408772635,1774216242275,-1128.69,0.000151,2]
[408772636,1774216242286,-3741.6990077,0.00015127,2]
[408772637,1774216242520,-5028.28722529,0.00015127,2]
[408772638,1774216242531,-1172.7449069,0.00015127,2]
[408772639,1774216242541,-1600.0,0.00015151,2]
[408772640,1774216242552,-151.0,0.00015191,2]
[408772641,1774216242562,-194.72792766,0.00015191,2]
[408772642,1774216242573,-200.0,0.00015191,2]
[408772643,1774216242583,-10000.0,0.00015205,2]
[408772644,1774216242594,-394.26,0.0001523,2]
[408772645,1774216242605,-399.69829113,0.00015264,2]
[408772646,1774216242615,-1176.2971295,0.00015327,2]
[408772647,1774216242625,-399.68,0.00015344,2]
[408772648,1774216242635,-166.66,0.00015398,2]
[408772649,1774216242646,-4000.0,0.00015507,2]
[408772650,1774216242656,-8769.98623299,0.00015514,2]
[408772651,1774216242667,-1172.7449069,0.00015514,2]
[408772653,1774216242676,-501.0,0.00015535,3]
[408772655,1774216242687,-225.0,0.00015548,3]
[408772656,1774216242696,-797.7875104,0.00015572,2]
[408772657,1774216242707,-200.0,0.000156,2]
[408772658,1774216242717,-150.0,0.000156,2]
[408772659,1774216242728,-2000.0,0.00015627,2]
[408772660,1774216242737,-150.0,0.00015647,2]
[408772661,1774216242748,-150.0,0.00015663,2]
[408772662,1774216242759,-6466.9864909,0.00015673,2]
[408772663,1774216242770,-1700.0,0.000157,5]
[408772664,1774216242780,-262.4673669,0.00015712,2]
[408772665,1774216242790,-151.0,0.00015739,2]
[408772667,1774216242801,-201.93286099,0.00015739,2]
[408772668,1774216242811,-200.0,0.00015739,2]
[408772670,1774216242821,-152.02,0.00015753,2]
[408772671,1774216242831,-168.0,0.00015767,2]
[408772672,1774216242841,-451.0,0.00015769,2]
[408772673,1774216242851,-2100.0,0.000158,5]
[408772674,1774216242861,-500.0,0.00015871,2]
[408772675,1774216242871,-200.0,0.00015871,2]
[408772677,1774216242881,-500.0,0.00015872,2]
[408772679,1774216242891,-200.0,0.00015872,2]
[408772681,1774216242901,-2000.0,0.0001589,2]
[408772684,1774216242911,-1000.0,0.00015894,2]
[408772687,1774216242921,-4000.0,0.00015895,2]
[408772691,1774216242931,-408.07179102,0.000159,2]
[408772694,1774216242941,-226.6549,0.000159,2]
[408772699,1774216242951,-400.0,0.000159,5]
[408772703,1774216242963,-8769.98623299,0.000159,2]
[408772707,1774216242973,-3155.80365569,0.000159,2]
[408772711,1774216242983,-305.77214585,0.000159,2]
[408772715,1774216242994,-314.23426362,0.000159,2]
[408772719,1774216243004,-39545.96618095,0.000159,2]
[408772723,1774216243015,-763.85,0.000159,2]
[408772727,1774216243026,-247.80360884,0.000159,2]
[408772730,1774216243035,-1172.7449069,0.000159,2]
[408772733,1774216243047,-13473.96034654,0.000159,2]
[408772735,1774216243057,-6373.46112942,0.000159,2]
[408772737,1774216243067,-451.0,0.00015921,2]
[408772739,1774216243078,-151.0,0.00015989,2]
[408772741,1774216243087,-150.24489129,0.0001599,2]
[408772742,1774216243097,-500.0,0.00015991,2]
[408772743,1774216243107,-257.472935,0.00015998,7]
[408772744,1774216243117,-2344.46847303,0.00016,2]
[408772745,1774216243130,-905.87873536,0.00016,2]
[408772746,1774216243141,-608.36686655,0.00016,2]
[408772747,1774216243152,-363.90905518,0.00016,2]
[408772748,1774216243169,-466.54728133,0.00016,2]
[408772756,1774216243554,-1000.0,0.00012414,2]
[408772757,1774216243563,-369578.97436326,0.00016,2]
[408772767,1774216245895,-34562.14243364,0.00016,2]
[408772768,1774216245997,-5098.80000001,0.00016,2]
[408772769,1774216246009,-1261.267356,0.00016,2]
[408772770,1774216246076,-1024.81408317,0.00016,2]
[408772775,1774216955833,-528.5641,0.00013413,2]
[408772776,1774216955855,-1000.0,0.00013413,2]
[408772777,1774216955879,-298.0,0.00013413,2]
[408772778,1774216955899,-979.16666667,0.00013541,2]
[408772779,1774216955921,-160.0,0.00013541,2]
[408772780,1774216955946,-1200.0,0.00013723,2]
[408772781,1774216955968,-301.64,0.00013725,2]
[408772782,1774216955989,-150.0,0.000138,2]
[408772783,1774216956011,-300.0,0.00013877,2]
[408772784,1774216956031,-262.90206542,0.00013878,2]
[408772785,1774216956052,-150.0,0.00013932,2]